bitfinex-derivatives/quotes_SOLF0:USTF0_20241024
["timestamp","ask_amount","ask_price","bid_price","bid_amount"]
[1729767846077,7.10639949,173.25,173.19,7.10639949]
[1729767846372,7.10639949,173.25,173.2,5.08707305]
[1729767846570,2.889,173.24,173.21,7.97605028]
[1729767846777,9.99539949,173.24,173.21,2.8893]
[1729767855577,2.8891,173.23,173.2,2.8894]
[1729767857459,2.8891,173.23,173.21,5.08296966]
[1729767857660,7.10639949,173.24,173.18,7.1498]
[1729767857960,7.10639949,173.24,173.19,5.08399782]
[1729767858148,7.10639949,173.24,173.2,5.08399782]
[1729767858347,7.10639949,173.22,173.16,2.8901]
[1729767858558,7.10639949,173.2,173.16,2.8901]
[1729767858763,9.99599949,173.2,173.17,5.084338]
[1729767859068,7.10639949,173.2,173.16,2.8902]
[1729767859254,7.10639949,173.2,173.17,5.08468239]
[1729767859450,7.10639949,173.2,173.16,2.8902]
[1729767859654,7.10639949,173.2,173.17,5.08524039]
[1729767859857,7.10639949,173.2,173.16,2.8902]
[1729767860161,7.10639949,173.2,173.17,5.08520231]
[1729767860363,7.10639949,173.2,173.14,2.3745]
[1729767860560,7.10639949,173.2,173.15,5.08629333]
[1729767860755,7.10639949,173.2,173.16,5.08629333]
[1729767862053,7.10639949,173.2,173.14,8.31189949]
[1729767862257,2.8897,173.19,173.15,2.8903]
[1729767862458,2.8897,173.19,173.16,5.0877383]
[1729767862668,2.8897,173.19,173.15,2.8903]
[1729767862857,2.8897,173.19,173.16,5.08775825]
[1729767863055,2.8902,173.17,173.14,4.096]
[1729767863260,7.10639949,173.18,173.15,5.08780992]
[1729767863456,7.10639949,173.18,173.16,5.08780992]
[1729767863658,7.10639949,173.18,173.13,7.10639949]
[1729767863659,9.99639949,173.18,173.14,2.8904]
[1729767863962,9.99639949,173.18,173.15,5.08780621]
[1729767864163,9.99639949,173.18,173.16,5.08780621]
[1729767864370,9.99639949,173.18,173.13,7.10639949]
[1729767864560,9.99639949,173.18,173.14,5.08782141]
[1729767864758,9.99639949,173.18,173.15,5.08782141]
[1729767865068,9.99639949,173.18,173.16,5.08782141]
[1729767865362,9.99639949,173.18,173.15,2.8903]
[1729767865559,9.99639949,173.18,173.16,5.08832649]
[1729767865762,9.99639949,173.18,173.15,2.8903]
[1729767865961,9.99639949,173.18,173.16,5.08832214]
[1729767866165,9.99639949,173.18,173.15,2.8903]
[1729767866357,4.26,173.21,173.17,2.89]
[1729767866561,7.10639949,173.19,173.13,7.10639949]
[1729767866967,9.99619949,173.19,173.15,2.8903]
[1729767867166,9.99619949,173.19,173.16,5.08843052]
[1729767867365,9.99619949,173.19,173.15,2.8903]
[1729767867564,9.99619949,173.19,173.16,5.08851459]
[1729767867768,9.99619949,173.19,173.15,2.8903]
[1729767867968,9.99619949,173.19,173.16,5.08849968]
[1729767868163,9.99619949,173.19,173.15,2.8903]
[1729767868373,9.99619949,173.19,173.16,5.08861485]
[1729767868571,9.99619949,173.19,173.15,2.8903]
[1729767868764,9.99619949,173.19,173.16,5.08855779]
[1729767868966,9.99619949,173.19,173.15,2.8903]
[1729767869171,9.99619949,173.19,173.16,5.08858978]
[1729767869477,9.99659949,173.17,173.14,2.8905]
[1729767869668,9.99659949,173.17,173.15,5.08925919]
[1729767869976,7.10639949,173.17,173.12,4.26]
[1729767870472,9.99649949,173.17,173.13,7.97972815]
[1729767870675,9.99649949,173.17,173.14,5.08912815]
[1729767870877,9.99649949,173.17,173.15,5.08912815]
[1729767871069,9.99649949,173.17,173.16,5.08912815]
[1729767871469,9.99649949,173.17,173.1,5.478]
[1729767871470,7.10639949,173.17,173.1,5.478]
[1729767871668,7.10639949,173.14,173.11,5.09119219]
[1729767871863,7.10639949,173.14,173.12,5.09119219]
[1729767872073,2.8906,173.14,173.13,5.09119219]
[1729767872268,9.99699949,173.14,173.13,5.09119219]
[1729767872570,9.99699949,173.14,173.07,5.4232]
[1729767872571,7.10639949,173.14,173.07,5.4232]
[1729767872772,7.10639949,173.11,173.08,5.09496697]
[1729767872968,7.10639949,173.11,173.09,5.09496697]
[1729767873167,7.10639949,173.11,173.07,5.4232]
[1729767873168,9.99739949,173.11,173.1,5.09496697]
[1729767873475,7.10639949,173.11,173.1,5.09496697]
[1729767873672,9.99759949,173.11,173.06,2.8918]
[1729767873973,9.99759949,173.11,173.07,5.09580941]
[1729767873974,7.10639949,173.09,173.07,5.09580941]
[1729767874169,7.10639949,173.09,173.08,5.09583157]
[1729767874367,9.99779949,173.09,173.08,5.09583157]
[1729767874874,7.10639949,173.09,173.08,5.09583157]
[1729767876377,9.99779949,173.09,173.08,5.09583157]
[1729767877171,9.99779949,173.09,173.05,2.8919]
[1729767877369,9.99779949,173.09,173.08,5.09462609]
[1729767878276,9.99779949,173.09,173.02,11.36639949]
[1729767878476,9.99779949,173.09,173.03,5.09189545]
[1729767878777,9.99779949,173.09,173.04,5.09189545]
[1729767878978,9.99779949,173.09,173.05,5.09189545]
[1729767879175,9.99779949,173.09,173.06,5.09189545]
[1729767879480,7.10639949,173.09,173.07,5.09189545]
[1729767879673,7.10639949,173.09,173.02,11.36639949]
[1729767879868,7.10639949,173.09,173.03,5.09096199]
[1729767880071,7.10639949,173.09,173.04,5.09096199]
[1729767880285,7.10639949,173.07,173.05,5.09096199]
[1729767880486,7.10639949,173.06,173.01,4.26]
[1729767880780,7.10639949,173.06,173.02,5.09118908]
[1729767880986,7.10639949,173.06,173.04,2.8921]
[1729767881276,7.10639949,173.06,173.05,5.09118908]
[1729767882284,7.10639949,173.06,173.04,2.8921]
[1729767883683,7.10639949,173.06,173.01,4.26]
[1729767883882,7.10639949,173.06,173.02,5.0869804]
[1729767884077,7.10639949,173.06,173.03,5.0869804]
[1729767884275,7.10639949,173.06,173.04,5.0869804]
[1729767884477,7.10639949,173.06,173.0,13.78819949]
[1729767884685,7.10639949,173.06,173.01,5.08462901]
[1729767884980,7.10639949,173.06,173.02,5.08426023]
[1729767885169,7.10639949,173.06,173.03,5.08426023]
[1729767885369,7.10639949,173.06,173.04,2.8922]
[1729767887185,7.10639949,173.06,173.03,5.08426023]
[1729767887382,7.10639949,173.06,173.01,5.08426023]
[1729767887579,7.10639949,173.04,173.02,5.08426023]
[1729767887781,7.10639949,173.04,172.98,4.26]
[1729767888081,7.10639949,173.04,172.99,5.08426023]
[1729767888286,7.10639949,173.04,173.0,5.07868348]
[1729767888491,7.10639949,173.04,172.99,5.07868348]
[1729767888677,7.10639949,173.04,173.0,5.07868348]
[1729767888875,7.10639949,173.04,173.02,2.8925]
[1729767889081,7.10639949,173.04,173.0,5.07868348]
[1729767889281,7.10639949,173.04,172.99,5.07868348]
[1729767889677,7.10639949,173.04,173.01,2.8926]
[1729767890886,7.10639949,173.04,172.99,5.07868348]
[1729767891186,7.10639949,173.05,172.99,12.18508297]
[1729767891393,7.10639949,173.05,172.99,7.10639949]
[1729767891587,7.10639949,173.05,173.03,2.8923]
[1729767891790,7.10639949,173.05,172.99,7.10639949]
[1729767892478,7.10639949,173.05,172.99,12.1798475]
[1729767892682,7.10639949,173.05,172.98,5.07344801]
[1729767892880,7.10639949,173.05,172.99,12.1798475]
[1729767893089,7.10639949,173.05,172.99,7.10639949]
[1729767894289,7.10639949,173.05,173.01,2.8927]
[1729767899693,7.10639949,173.05,172.99,7.10639949]
[1729767899899,7.10639949,173.05,173.02,2.8925]
[1729767900092,1.2314,173.08,173.0,7.10639949]
[1729767900292,4.26,173.08,173.04,2.8921]
[1729767900488,7.10639949,173.07,173.04,2.8921]
[1729767901795,4.26,173.08,173.01,9.32470324]
[1729767902199,4.26,173.08,173.01,4.26]
[1729767902392,4.26,173.08,173.02,7.10639949]
[1729767902393,7.10639949,173.07,173.02,7.10639949]
[1729767902798,7.10639949,173.07,173.03,2.8923]
[1729767902995,7.10639949,173.07,173.02,7.10639949]
[1729767903296,1.2368,173.12,173.04,7.10639949]
[1729767903297,7.10639949,173.09,173.04,7.10639949]
[1729767904296,7.10639949,173.09,173.06,2.8918]
[1729767904697,2.8909,173.12,173.08,2.8914]
[1729767905011,7.10639949,173.12,173.06,7.10639949]
[1729767905408,7.10639949,173.12,173.08,2.8914]
[1729767906810,9.99729949,173.12,173.08,2.8914]
[1729767909108,7.10639949,173.12,173.06,7.10639949]
[1729767909318,4.26,173.14,173.06,7.10639949]
[1729767909512,7.10639949,173.12,173.06,7.10639949]
[1729767910307,7.10639949,173.12,173.09,2.8912]
[1729767910903,7.10639949,173.12,173.05,4.26]
[1729767910904,5.4025,173.16,173.11,2.8909]
[1729767911215,4.26,173.17,173.11,7.10639949]
[1729767912109,7.1501,173.17,173.13,2.8906]
[1729767913509,7.10639949,173.15,173.1,7.10639949]
[1729767913711,7.10639949,173.15,173.12,2.8908]
[1729767915419,4.26,173.17,173.1,2.8911]
[1729767915420,7.10639949,173.13,173.1,2.8911]
[1729767916116,2.891,173.12,173.08,2.8914]
[1729767916333,7.10639949,173.13,173.07,7.10639949]
[1729767916711,9.99719949,173.13,173.09,2.8912]
[1729767917810,9.99719949,173.13,173.08,2.8914]
[1729767918617,9.99719949,173.13,173.07,7.10639949]
[1729767918817,2.8909,173.12,173.07,7.10639949]
[1729767919019,2.8909,173.12,173.06,4.26]
[1729767919020,7.10639949,173.12,173.06,11.36639949]
[1729767919211,7.10639949,173.12,173.07,2.8916]
[1729767919410,7.10639949,173.1,173.07,2.8916]
[1729767922522,9.99749949,173.11,173.07,2.8916]
[1729767924323,9.99749949,173.11,173.08,2.8915]
[1729767924720,4.26,173.13,173.07,7.10639949]
[1729767924922,11.36639949,173.13,173.09,2.8913]
[1729767925519,14.25719949,173.13,173.09,2.8913]
[1729767928532,2.8909,173.12,173.09,2.8913]
[1729767928731,11.36639949,173.13,173.07,7.10639949]
[1729767928935,11.36639949,173.13,173.1,2.8912]
[1729767929235,14.25719949,173.13,173.1,2.8912]
[1729767932635,2.8909,173.12,173.1,2.8912]
[1729767933231,2.891,173.11,173.09,2.8913]
[1729767934029,7.10639949,173.12,173.06,11.36639949]
[1729767934236,7.10639949,173.12,173.1,2.8911]
[1729767936334,9.99729949,173.12,173.1,2.8911]
[1729767940041,1.2191,173.16,173.06,11.36639949]
[1729767940042,5.4791,173.16,173.11,7.10639949]
[1729767940234,1.2191,173.16,173.12,12.19400262]
[1729767940436,12.62429949,173.18,173.13,5.08760313]
[1729767940642,12.62429949,173.18,173.12,7.10639949]
[1729767940839,12.62429949,173.18,173.15,2.8902]
[1729767940840,15.51419949,173.18,173.15,2.8902]
[1729767941037,11.25419949,173.18,173.15,2.8902]
[1729767941445,2.8901,173.17,173.15,2.8902]
[1729767942240,2.8901,173.17,173.12,7.10639949]
[1729767942544,2.8901,173.17,173.14,2.8905]
[1729767960250,2.8903,173.16,173.14,2.8905]
[1729767960455,2.8903,173.16,173.12,7.10639949]
[1729767960657,8.36429949,173.18,173.13,5.08557096]
[1729767960861,8.36429949,173.18,173.12,7.10639949]
[1729767961056,2.8901,173.17,173.14,2.8905]
[1729767962655,2.8899,173.18,173.15,2.8903]
[1729767963056,2.8899,173.18,173.16,5.08551389]
[1729767963255,2.8899,173.18,173.15,2.8903]
[1729767963554,2.8899,173.18,173.16,5.08583507]
[1729767963857,2.8899,173.18,173.15,2.8903]
[1729767964760,2.8899,173.18,173.16,5.08538532]
[1729767964960,2.8899,173.18,173.15,2.8903]
[1729767965262,2.8899,173.18,173.16,5.08575332]
[1729767965463,2.8899,173.18,173.15,2.8903]
[1729767965651,2.8899,173.18,173.16,5.08564762]
[1729767965855,2.8899,173.18,173.15,2.8903]
[1729767966055,7.10639949,173.18,173.16,5.08567921]
[1729767966266,7.10639949,173.17,173.12,2.8908]
[1729767966463,7.10639949,173.15,173.13,5.08713462]
[1729767966658,2.8909,173.13,173.08,11.36639949]
[1729767966859,4.26,173.17,173.09,5.08878515]
[1729767966860,7.10639949,173.12,173.09,5.08878515]
[1729767967059,7.10639949,173.11,173.1,5.08878515]
[1729767967865,9.99739949,173.11,173.07,2.8916]
[1729767968066,9.99739949,173.11,173.08,5.09117037]
[1729767968267,9.99739949,173.11,173.07,2.8916]
[1729767968268,9.99739949,173.11,173.09,5.09117037]
[1729767968461,9.99739949,173.11,173.1,5.09117037]
[1729767969366,2.891,173.11,173.08,2.8915]
[1729767969569,2.891,173.11,173.1,5.09112718]
[1729767970371,4.26,173.13,173.11,2.891]
[1729767970883,8.04105705,173.35,173.11,7.10639949]
[1729767971168,7.10639949,173.18,173.13,7.10639949]
[1729767971367,7.10639949,173.18,173.14,5.09062541]
[1729767971668,7.10639949,173.18,173.14,2.8905]
[1729767971867,7.10639949,173.18,173.11,4.24]
[1729767971868,7.10639949,173.18,173.15,5.08860077]
[1729767972067,2.8902,173.17,173.13,2.8906]
[1729767972269,2.8902,173.17,173.14,5.0885362]
[1729767972567,2.8902,173.17,173.15,5.0885362]
[1729767972768,2.8902,173.17,173.11,11.34639949]
[1729767972969,2.8902,173.17,173.12,5.08893111]
[1729767973266,2.8902,173.17,173.13,7.97913421]
[1729767973469,2.8902,173.17,173.11,11.34639949]
[1729767973665,2.8902,173.17,173.12,5.08880548]
[1729767973868,2.8902,173.17,173.13,7.97930548]
[1729767974066,2.8902,173.17,173.14,5.08880548]
[1729767974274,2.8902,173.17,173.15,5.08880548]
[1729767974473,2.8902,173.17,173.16,5.08880548]
[1729767976875,2.8902,173.17,173.14,2.8905]
[1729767977174,2.8902,173.17,173.15,5.09105319]
[1729767977362,2.8902,173.17,173.16,5.09105319]
[1729767978670,2.8902,173.17,173.13,2.8906]
[1729767978865,2.8902,173.17,173.14,5.09120697]
[1729767979070,2.8902,173.17,173.15,5.09120697]
[1729767979378,2.8902,173.17,173.13,2.8906]
[1729767979379,2.8902,173.17,173.16,5.0909614]
[1729767980279,2.8902,173.17,173.12,2.8907]
[1729767980469,2.8902,173.17,173.11,11.34639949]
[1729767980874,2.8902,173.17,173.12,5.09113641]
[1729767981074,2.8902,173.17,173.13,7.98173641]
[1729767981275,9.99629949,173.18,173.14,5.09113641]
[1729767981475,9.99629949,173.18,173.15,5.09113641]
[1729767981681,9.99629949,173.18,173.13,7.10639949]
[1729767981984,9.99629949,173.18,173.14,5.09110266]
[1729767982178,9.99629949,173.18,173.15,5.09110266]
[1729767982377,9.99629949,173.18,173.14,2.8905]
[1729767982678,9.99629949,173.18,173.15,5.09099686]
[1729767982874,9.99629949,173.18,173.14,2.8905]
[1729767983078,14.23599949,173.2,173.16,2.8901]
[1729767983680,14.23599949,173.2,173.17,2.89]
[1729767983890,14.23599949,173.2,173.14,7.10639949]
[1729767984085,14.23599949,173.2,173.15,5.09071536]
[1729767984286,14.23599949,173.2,173.14,7.10639949]
[1729767985090,14.23599949,173.2,173.15,5.09049202]
[1729767985287,14.23599949,173.2,173.14,7.10639949]
[1729767985491,14.23599949,173.2,173.15,5.09043728]
[1729767985691,14.23599949,173.2,173.14,7.10639949]
[1729767985901,14.23599949,173.2,173.16,2.8901]
[1729767986093,11.34639949,173.2,173.12,1.2504]
[1729767986297,7.10639949,173.19,173.16,2.8902]
[1729767986487,7.10639949,173.19,173.12,1.2504]
[1729767986694,7.10639949,173.19,173.13,12.19670569]
[1729767986894,7.10639949,173.17,173.14,5.0903062]
[1729767987194,7.10639949,173.15,173.11,4.24]
[1729767987392,7.10639949,173.15,173.12,7.98201353]
[1729767987601,7.10639949,173.15,173.13,5.09131353]
[1729767987795,7.10639949,173.15,173.14,5.09131353]
[1729767988295,9.99679949,173.15,173.11,7.1309]
[1729767988501,7.10639949,173.14,173.12,5.09154899]
[1729767988804,9.99719949,173.13,173.09,2.8913]
[1729767988989,9.99719949,173.13,173.1,5.09393531]
[1729767989194,7.10639949,173.13,173.11,5.09393531]
[1729767989500,7.10639949,173.13,173.09,2.8913]
[1729767989693,2.8907,173.14,173.1,7.98525654]
[1729767989893,7.10639949,173.13,173.11,5.09405654]
[1729767990090,7.10639949,173.13,173.1,2.8912]
[1729767990398,7.10639949,173.13,173.11,5.09356634]
[1729767990599,7.10639949,173.13,173.1,2.8912]
[1729767990800,7.10639949,173.13,173.11,5.09367622]
[1729767991093,7.10639949,173.13,173.1,2.8912]
[1729767991302,7.10639949,173.13,173.11,5.09362185]
[1729767991495,7.10639949,173.13,173.1,2.8912]
[1729767991801,7.10639949,173.13,173.11,5.09362185]
[1729767992005,7.10639949,173.13,173.1,2.8912]
[1729767992504,7.10639949,173.13,173.11,5.09351544]
[1729767992801,9.99709949,173.14,173.12,5.09256763]
[1729767993004,9.99709949,173.14,173.11,2.891]
[1729767993191,9.99709949,173.14,173.12,5.09259146]
[1729767993395,9.99709949,173.14,173.11,2.891]
[1729767993599,7.10639949,173.14,173.12,5.09296787]
[1729767993799,7.10639949,173.14,173.09,7.10639949]
[1729767993998,4.24,173.15,173.1,5.0930237]
[1729767994197,4.24,173.15,173.11,5.0930237]
[1729767994399,4.24,173.15,173.12,7.9838237]
[1729767994700,4.24,173.15,173.13,5.0930237]
[1729767994902,4.24,173.15,173.12,2.8908]
[1729767995102,4.24,173.15,173.13,5.0919949]
[1729767995395,4.24,173.15,173.14,5.09215656]
[1729767996191,9.99669949,173.16,173.14,5.09215656]
[1729767996401,9.99669949,173.16,173.12,2.8908]
[1729767996592,9.99669949,173.16,173.13,5.09244816]
[1729767996798,9.99669949,173.16,173.12,2.8908]
[1729767996997,9.99669949,173.16,173.13,5.09241466]
[1729767997196,9.99669949,173.16,173.14,5.09241466]
[1729767997398,9.99669949,173.16,173.12,2.8908]
[1729767997601,9.99669949,173.16,173.13,5.09269775]
[1729767997802,9.99669949,173.16,173.14,5.09269775]
[1729767998098,9.99669949,173.16,173.12,2.8908]
[1729767998293,7.10639949,173.14,173.13,5.09287433]
[1729767998495,9.99689949,173.14,173.13,5.09287433]
[1729767999108,9.99689949,173.14,173.07,7.10639949]
[1729767999109,7.10639949,173.14,173.09,2.8912]
[1729767999306,7.10639949,173.11,173.1,5.09314187]
[1729768000101,7.10639949,173.11,173.09,2.8912]
[1729768000406,7.10639949,173.11,173.1,5.09360003]
[1729768003900,7.10639949,173.11,173.08,2.8915]
[1729768004107,7.10639949,173.11,173.09,5.09383993]
[1729768004311,7.10639949,173.11,173.1,5.09383993]
[1729768004810,9.99729949,173.12,173.1,5.09383993]
[1729768005007,9.99729949,173.12,173.11,5.09383993]
[1729768007518,9.99729949,173.12,173.09,2.8913]
[1729768007714,9.99729949,173.12,173.11,5.09446495]
[1729768007903,9.99729949,173.12,173.11,5.09449705]
[1729768008918,9.99729949,173.12,173.09,2.8913]
[1729768009114,9.99729949,173.12,173.1,5.09465066]
[1729768009315,9.99729949,173.12,173.09,2.8913]
[1729768009316,9.99729949,173.12,173.11,5.09465066]
[1729768011143,9.99729949,173.12,173.1,2.8912]
[1729768011316,9.99729949,173.12,173.11,5.09504491]
[1729768012216,7.10639949,173.12,173.11,5.09504491]
[1729768012417,4.24,173.13,173.11,5.09504491]
[1729768012617,4.24,173.13,173.07,7.10639949]
[1729768012817,4.24,173.13,173.11,2.8909]
[1729768016623,7.1307,173.13,173.11,2.8909]
[1729768017117,2.8907,173.13,173.11,2.8909]
[1729768017512,9.99709949,173.13,173.11,2.8909]
[1729768020923,2.8652021,173.22,173.08,7.10639949]
[1729768021220,7.10639949,173.18,173.12,7.10639949]
[1729768021719,7.10639949,173.19,173.12,7.10639949]
[1729768022219,7.10639949,173.19,173.14,7.10639949]
[1729768022419,7.10639949,173.19,173.15,5.08993629]
[1729768022622,7.10639949,173.19,173.16,5.08993629]
[1729768022821,7.10639949,173.19,173.17,5.08993629]
[1729768023124,7.10639949,173.19,173.16,2.8901]
[1729768023322,7.10639949,173.19,173.17,5.0874004]
[1729768023624,9.99609949,173.19,173.16,2.8901]
[1729768023820,9.99609949,173.19,173.17,5.0854309]
[1729768024021,9.99609949,173.19,173.16,2.8901]
[1729768024219,9.99609949,173.19,173.17,5.08543113]
[1729768024416,9.99609949,173.19,173.16,2.8901]
[1729768025126,2.8897,173.19,173.17,5.08630455]
[1729768025330,2.8897,173.19,173.16,2.8901]
[1729768026414,7.10639949,173.2,173.14,7.10639949]
[1729768026622,2.89,173.18,173.15,7.97452068]
[1729768026820,2.89,173.18,173.16,5.08422068]
[1729768027129,2.89,173.18,173.15,2.8903]
[1729768027323,2.89,173.18,173.16,5.08493092]
[1729768027521,2.89,173.18,173.15,2.8903]
[1729768027718,2.89,173.18,173.16,5.08453124]
[1729768027926,2.89,173.18,173.15,2.8903]
[1729768028226,2.89,173.18,173.16,5.08453142]
[1729768028424,2.8905,173.15,173.11,2.8909]
[1729768028615,7.10639949,173.16,173.12,5.08565813]
[1729768028826,7.10639949,173.16,173.11,2.8909]
[1729768029020,2.8906,173.14,173.12,5.08562368]
[1729768029225,2.8906,173.14,173.1,2.8911]
[1729768029226,2.8906,173.14,173.13,5.08562368]
[1729768029428,9.99699949,173.14,173.13,5.08562368]
[1729768029721,9.99699949,173.14,173.03,1.2617]
[1729768029722,7.10639949,173.14,173.05,11.34639949]
[1729768029929,7.10639949,173.1,173.06,5.08875052]
[1729768030130,7.10639949,173.1,173.07,5.08875052]
[1729768030329,9.99789949,173.09,173.08,5.08875052]
[1729768032129,9.99789949,173.09,173.05,2.8919]
[1729768032319,7.10639949,173.09,173.06,7.98275099]
[1729768032522,7.10639949,173.09,173.07,5.09095099]
[1729768032732,7.10639949,173.09,173.08,5.09095099]
[1729768034630,4.24,173.13,173.08,5.09095099]
[1729768034929,4.24,173.13,173.1,2.8912]
[1729768035128,11.34639949,173.13,173.1,2.8912]
[1729768035525,4.24,173.13,173.06,7.10639949]
[1729768035726,7.10639949,173.11,173.07,5.08929337]
[1729768035933,7.10639949,173.11,173.08,5.08929337]
[1729768036139,7.10639949,173.11,173.09,5.08929337]
[1729768036436,7.10639949,173.12,173.1,5.08929337]
[1729768036630,7.10639949,173.12,173.09,2.8913]
[1729768036834,7.10639949,173.12,173.1,5.08917319]
[1729768037032,7.10639949,173.12,173.09,2.8913]
[1729768037335,7.10639949,173.12,173.1,5.08918641]
[1729768037529,7.10639949,173.12,173.09,2.8913]
[1729768037732,7.10639949,173.12,173.1,5.0891681]
[1729768038034,7.10639949,173.12,173.09,2.8913]
[1729768038230,7.10639949,173.12,173.1,5.08912602]
[1729768038431,7.10639949,173.12,173.09,2.8913]
[1729768038638,7.10639949,173.12,173.1,5.08904016]
[1729768038837,7.10639949,173.12,173.09,2.8913]
[1729768039038,7.10639949,173.12,173.1,5.08904016]
[1729768039230,7.10639949,173.11,173.05,7.10639949]
[1729768039426,7.10639949,173.09,173.06,5.08927646]
[1729768039626,7.10639949,173.09,173.07,5.08927646]
[1729768039828,7.10639949,173.09,173.08,5.08927646]
[1729768040228,9.99779949,173.09,173.08,5.08927646]
[1729768041133,2.8919,173.06,173.02,2.8924]
[1729768041339,2.8919,173.06,173.03,5.09123678]
[1729768041340,7.10639949,173.04,173.03,5.09123678]
[1729768043038,7.10639949,173.04,173.02,2.8924]
[1729768043433,7.10639949,173.04,173.03,5.09093829]
[1729768043730,9.99789949,173.08,173.05,2.892]
[1729768044128,9.99789949,173.08,173.02,7.10639949]
[1729768044343,2.8918,173.07,173.04,2.8922]
[1729768044640,2.8918,173.07,173.05,5.08879884]
[1729768044842,2.8918,173.07,173.04,2.8922]
[1729768045135,9.99799949,173.08,173.05,5.08880068]
[1729768045536,9.99799949,173.08,173.05,2.892]
[1729768045847,9.99799949,173.08,173.01,8.33009949]
[1729768045848,2.8918,173.07,173.01,8.33009949]
[1729768046642,9.99799949,173.08,173.04,2.8922]
[1729768048765,9.99799949,173.08,173.05,2.892]
[1729768054269,2.8913,173.1,173.07,2.8917]
[1729768054849,7.10639949,173.11,173.03,4.24]
[1729768055069,7.10639949,173.11,173.04,7.10639949]
[1729768055070,2.8914,173.09,173.04,7.10639949]
[1729768055453,2.8914,173.09,173.05,5.08214923]
[1729768055657,2.8914,173.09,173.06,7.97394923]
[1729768055865,2.8914,173.09,173.07,5.08214923]
[1729768056053,2.8914,173.09,173.06,2.8918]
[1729768056252,2.8914,173.09,173.07,5.08201968]
[1729768056556,2.8914,173.09,173.06,2.8918]
[1729768056755,2.8914,173.09,173.07,5.0819594]
[1729768056958,2.8914,173.09,173.06,2.8918]
[1729768057160,2.8914,173.09,173.07,5.08205043]
[1729768057360,2.8914,173.09,173.06,2.8918]
[1729768057562,2.8914,173.09,173.07,5.08151711]
[1729768057757,2.8914,173.09,173.06,2.8918]
[1729768059766,2.8914,173.09,173.07,5.07786704]
[1729768059965,2.8914,173.09,173.06,2.8918]
[1729768060169,2.8914,173.09,173.07,5.07763636]
[1729768060369,2.8914,173.09,173.06,2.8918]
[1729768060568,2.8914,173.09,173.07,5.07752029]
[1729768060770,2.8914,173.09,173.06,2.8918]
[1729768061864,8.68378488,173.22,173.06,7.10639949]
[1729768062088,8.68378488,173.22,173.07,12.1836386]
[1729768062089,7.8905,173.18,173.07,12.1836386]
[1729768062381,7.10639949,173.16,173.09,7.10639949]
[1729768062569,7.10639949,173.16,173.08,5.07723911]
[1729768062570,7.10639949,173.16,173.1,5.07723911]
[1729768062773,7.10639949,173.16,173.11,5.07723911]
[1729768062964,7.10639949,173.16,173.09,7.10639949]
[1729768063163,7.10639949,173.16,173.1,5.07366028]
[1729768063467,7.10639949,173.16,173.11,12.18005977]
[1729768063672,7.10639949,173.16,173.12,5.07366028]
[1729768063969,7.10639949,173.16,173.11,7.10639949]
[1729768064171,7.10639949,173.16,173.12,5.0727824]
[1729768064372,9.99659949,173.16,173.13,2.8905]
[1729768064760,2.8904,173.15,173.11,2.8909]
[1729768064961,2.8904,173.15,173.12,5.07286586]
[1729768065163,2.8904,173.15,173.11,2.8909]
[1729768065364,2.8904,173.15,173.12,5.07279895]
[1729768065564,7.10639949,173.16,173.13,2.8906]
[1729768065770,2.89,173.17,173.13,2.8906]
[1729768065974,11.34639949,173.18,173.12,7.10639949]
[1729768066178,14.23629949,173.18,173.12,7.10639949]
[1729768066472,4.24,173.18,173.13,12.17742382]
[1729768066673,7.10639949,173.19,173.16,2.8902]
[1729768066876,3.5729,173.26,173.15,7.10639949]
[1729768067074,4.24,173.25,173.15,7.10639949]
[1729768067265,7.10639949,173.21,173.17,2.8899]
[1729768069275,9.99579949,173.21,173.17,2.8899]
[1729768071977,7.10639949,173.21,173.18,2.8898]
[1729768073078,7.10639949,173.21,173.15,11.34639949]
[1729768073381,4.24,173.25,173.2,2.8895]
[1729768073382,7.10639949,173.23,173.2,2.8895]
[1729768074373,9.99549949,173.23,173.2,2.8895]
[1729768075177,7.8129,173.26,173.19,7.10639949]
[1729768075384,7.10639949,173.24,173.21,2.8893]
[1729768076786,9.99529949,173.24,173.21,2.8893]
[1729768078283,7.10639949,173.24,173.19,7.10639949]
[1729768078589,9.99549949,173.23,173.2,2.8895]
[1729768079280,2.8896,173.2,173.17,2.8899]
[1729768079477,7.10639949,173.22,173.16,4.24]
[1729768080282,7.10639949,173.22,173.15,11.34639949]
[1729768081082,2.8897,173.2,173.16,2.8901]
[1729768081384,7.10639949,173.22,173.16,2.8901]